[Event "Titled Tuesday Blitz August 08 Late 2023"]
[White "Cagara, Paulina"]
[Black "Ncatt"]
[WhiteFideId "1124870"]
[WhiteElo "2268"]
[BlackElo "2377"]
[Result "1-0"]
[Round "7"]
[TimeControl "180+1"]
[Date "2023.08.08"]
[WhiteClock "0:00:17"]
[BlackClock "0:00:03"]
[Board "123"]

1. e4 {[%clk 0:03:00]}  c5 {[%clk 0:02:44]} 2. Nc3 {[%clk 0:03:00]}  Nc6 {[%clk 0:02:44]} 3. Bb5 {[%clk 0:02:59]}  g6 {[%clk 0:02:42]} 4. Bxc6 {[%clk 0:02:59]}  bxc6 {[%clk 0:02:41]} 5. d3 {[%clk 0:02:59]}  Bg7 {[%clk 0:02:40]} 6. f4 {[%clk 0:02:59]}  Nf6 {[%clk 0:02:38]} 7. Nf3 {[%clk 0:02:59]}  O-O {[%clk 0:02:37]} 8. O-O {[%clk 0:02:59]}  Ba6 {[%clk 0:02:31]} 9. Qe2 {[%clk 0:02:53]}  Rb8 {[%clk 0:02:25]} 10. Na4 {[%clk 0:02:42]}  c4 {[%clk 0:02:17]} 11. dxc4 {[%clk 0:02:30]}  d5 {[%clk 0:02:17]} 12. exd5 {[%clk 0:02:22]}  cxd5 {[%clk 0:02:16]} 13. b3 {[%clk 0:02:21]}  dxc4 {[%clk 0:02:06]} 14. Bb2 {[%clk 0:02:19]}  Qa5 {[%clk 0:01:41]} 15. Bc3 {[%clk 0:02:15]}  Qf5 {[%clk 0:01:22]} 16. Nd4 {[%clk 0:02:11]}  Qe4 {[%clk 0:01:13]} 17. Qf2 {[%clk 0:01:53]}  cxb3 {[%clk 0:01:07]} 18. Rfe1 {[%clk 0:01:53]}  b2 {[%clk 0:01:01]} 19. Bxb2 {[%clk 0:01:41]}  Qd5 {[%clk 0:00:59]} 20. Nb3 {[%clk 0:01:35]}  Rbc8 {[%clk 0:00:50]} 21. Rad1 {[%clk 0:01:31]}  Qc4 {[%clk 0:00:45]} 22. Nac5 {[%clk 0:01:28]}  e6 {[%clk 0:00:39]} 23. Rd4 {[%clk 0:01:10]}  Ng4 {[%clk 0:00:28]} 24. Rxc4 {[%clk 0:01:07]}  Nxf2 {[%clk 0:00:27]} 25. Bxg7 {[%clk 0:01:04]}  Kxg7 {[%clk 0:00:20]} 26. Ra4 {[%clk 0:01:03]}  Bb5 {[%clk 0:00:19]} 27. Rxa7 {[%clk 0:01:00]}  Ng4 {[%clk 0:00:17]} 28. Nxe6+ {[%clk 0:00:59]}  Kh6 {[%clk 0:00:15]} 29. Nxf8 {[%clk 0:00:58]}  Rxf8 {[%clk 0:00:16]} 30. Nd4 {[%clk 0:00:54]}  Bc4 {[%clk 0:00:15]} 31. h3 {[%clk 0:00:50]}  Nf6 {[%clk 0:00:15]} 32. f5 {[%clk 0:00:49]}  Nh5 {[%clk 0:00:14]} 33. Ra4 {[%clk 0:00:39]}  Bd5 {[%clk 0:00:14]} 34. Ra5 {[%clk 0:00:37]}  Bb7 {[%clk 0:00:12]} 35. g4 {[%clk 0:00:33]}  Nf4 {[%clk 0:00:10]} 36. Kh2 {[%clk 0:00:32]}  Rd8 {[%clk 0:00:09]} 37. c3 {[%clk 0:00:31]}  Rc8 {[%clk 0:00:09]} 38. Re3 {[%clk 0:00:29]}  Nd5 {[%clk 0:00:08]} 39. Rd3 {[%clk 0:00:25]}  Nxc3 {[%clk 0:00:07]} 40. fxg6 {[%clk 0:00:22]}  fxg6 {[%clk 0:00:06]} 41. Nf3 {[%clk 0:00:20]}  Ne4 {[%clk 0:00:05]} 42. g5+ {[%clk 0:00:20]}  Kh5 {[%clk 0:00:05]} 43. Rd4 {[%clk 0:00:18]}  Nf2 {[%clk 0:00:03]} 44. Rh4# {[%clk 0:00:17]} 1-0


[Site "https://www.chess.com"]

[Event "Titled Tuesday Blitz August 08 Late 2023"]
[White "Steindl, Johannes"]
[Black "Beulen, Marcel"]
[WhiteFideId "1643266"]
[BlackFideId "1001450"]
[WhiteElo "2260"]
[BlackElo "2375"]
[Result "1-0"]
[Round "7"]
[TimeControl "180+1"]
[Date "2023.08.08"]
[WhiteClock "0:00:44"]
[BlackClock "0:00:38"]
[Board "124"]

1. e4 {[%clk 0:03:00]}  d5 {[%clk 0:02:59]} 2. exd5 {[%clk 0:02:59]}  Qxd5 {[%clk 0:03:00]} 3. Nf3 {[%clk 0:02:56]}  Bg4 {[%clk 0:02:57]} 4. Be2 {[%clk 0:02:55]}  Nc6 {[%clk 0:02:56]} 5. d4 {[%clk 0:02:52]}  O-O-O {[%clk 0:02:56]} 6. c4 {[%clk 0:02:52]}  Qa5+ {[%clk 0:02:38]} 7. Bd2 {[%clk 0:02:45]}  Qf5 {[%clk 0:02:12]} 8. d5 {[%clk 0:02:35]}  Bxf3 {[%clk 0:02:05]} 9. Bxf3 {[%clk 0:02:35]}  Ne5 {[%clk 0:02:05]} 10. Be3 {[%clk 0:01:54]}  Nxf3+ {[%clk 0:01:50]} 11. Qxf3 {[%clk 0:01:53]}  Qxf3 {[%clk 0:01:33]} 12. gxf3 {[%clk 0:01:54]}  Nf6 {[%clk 0:01:33]} 13. Nc3 {[%clk 0:01:53]}  e6 {[%clk 0:01:30]} 14. dxe6 {[%clk 0:01:45]}  fxe6 {[%clk 0:01:30]} 15. Ke2 {[%clk 0:01:43]}  a6 {[%clk 0:01:25]} 16. a3 {[%clk 0:01:38]}  Bd6 {[%clk 0:01:24]} 17. Rac1 {[%clk 0:01:25]}  Be5 {[%clk 0:01:21]} 18. b4 {[%clk 0:01:22]}  Rd7 {[%clk 0:01:15]} 19. Na4 {[%clk 0:01:13]}  Rhd8 {[%clk 0:00:56]} 20. Nc5 {[%clk 0:01:13]}  Re7 {[%clk 0:00:56]} 21. Rcd1 {[%clk 0:01:06]}  Rxd1 {[%clk 0:00:53]} 22. Rxd1 {[%clk 0:01:02]}  Bxh2 {[%clk 0:00:41]} 23. f4 {[%clk 0:00:52]}  e5 {[%clk 0:00:40]} 24. f5 {[%clk 0:00:47]}  e4 {[%clk 0:00:40]} 25. Ne6 {[%clk 0:00:45]}  Be5 {[%clk 0:00:38]} 26. Rd8# {[%clk 0:00:44]} 1-0


[Site "https://www.chess.com"]

[Event "Titled Tuesday Blitz August 08 Late 2023"]
[White "Sarkar, Justin"]
[Black "Real_taiatai"]
[WhiteFideId "2010011"]
[WhiteElo "2238"]
[BlackElo "2362"]
[Result "1/2-1/2"]
[Round "7"]
[TimeControl "180+1"]
[Date "2023.08.08"]
[WhiteClock "0:00:28"]
[BlackClock "0:01:14"]
[Board "127"]

1. d4 {[%clk 0:02:54]}  Nf6 {[%clk 0:02:59]} 2. c4 {[%clk 0:02:53]}  g6 {[%clk 0:03:00]} 3. Nc3 {[%clk 0:02:52]}  Bg7 {[%clk 0:03:01]} 4. e4 {[%clk 0:02:52]}  d6 {[%clk 0:03:01]} 5. f3 {[%clk 0:02:51]}  O-O {[%clk 0:02:54]} 6. Be3 {[%clk 0:02:50]}  Na6 {[%clk 0:02:26]} 7. Nge2 {[%clk 0:02:44]}  c5 {[%clk 0:02:25]} 8. Qd2 {[%clk 0:02:38]}  Bd7 {[%clk 0:02:11]} 9. d5 {[%clk 0:02:34]}  e6 {[%clk 0:02:09]} 10. dxe6 {[%clk 0:02:20]}  Bxe6 {[%clk 0:02:05]} 11. Nf4 {[%clk 0:02:20]}  Nc7 {[%clk 0:01:58]} 12. Be2 {[%clk 0:02:13]}  Qe7 {[%clk 0:01:57]} 13. O-O {[%clk 0:01:59]}  Rad8 {[%clk 0:01:55]} 14. Rad1 {[%clk 0:01:56]}  Bc8 {[%clk 0:01:54]} 15. b3 {[%clk 0:01:51]}  a6 {[%clk 0:01:53]} 16. Rfe1 {[%clk 0:01:42]}  Rfe8 {[%clk 0:01:52]} 17. Bf1 {[%clk 0:01:29]}  h5 {[%clk 0:01:48]} 18. Ncd5 {[%clk 0:01:19]}  Ncxd5 {[%clk 0:01:47]} 19. Nxd5 {[%clk 0:01:15]}  Nxd5 {[%clk 0:01:40]} 20. Qxd5 {[%clk 0:01:00]}  Bf6 {[%clk 0:01:27]} 21. Qd2 {[%clk 0:00:43]}  b6 {[%clk 0:01:20]} 22. Bf4 {[%clk 0:00:37]}  Bd4+ {[%clk 0:01:19]} 23. Be3 {[%clk 0:00:35]}  Bf6 {[%clk 0:01:18]} 24. Bf4 {[%clk 0:00:33]}  Bd4+ {[%clk 0:01:18]} 25. Be3 {[%clk 0:00:28]}  Bf6 {[%clk 0:01:14]} 1/2-1/2


[Site "https://www.chess.com"]

[Event "Titled Tuesday Blitz August 08 Late 2023"]
[White "Guzman Moneo, Alberto"]
[Black "Garmendiarov"]
[WhiteFideId "2209616"]
[WhiteElo "2359"]
[BlackElo "2322"]
[Result "1-0"]
[Round "7"]
[TimeControl "180+1"]
[Date "2023.08.08"]
[WhiteClock "0:00:40"]
[BlackClock "0:00:07"]
[Board "129"]

1. e4 {[%clk 0:03:00]}  c5 {[%clk 0:02:59]} 2. Nc3 {[%clk 0:03:00]}  d6 {[%clk 0:02:59]} 3. f4 {[%clk 0:02:59]}  g6 {[%clk 0:03:00]} 4. Nf3 {[%clk 0:02:59]}  Bg7 {[%clk 0:03:00]} 5. Bc4 {[%clk 0:02:58]}  Nc6 {[%clk 0:03:01]} 6. d3 {[%clk 0:02:59]}  e6 {[%clk 0:03:01]} 7. O-O {[%clk 0:02:59]}  Nge7 {[%clk 0:03:01]} 8. a4 {[%clk 0:02:59]}  O-O {[%clk 0:03:00]} 9. Ba2 {[%clk 0:03:00]}  d5 {[%clk 0:02:52]} 10. e5 {[%clk 0:02:59]}  a6 {[%clk 0:02:33]} 11. d4 {[%clk 0:02:56]}  cxd4 {[%clk 0:02:26]} 12. Nxd4 {[%clk 0:02:56]}  Qb6 {[%clk 0:02:22]} 13. Ne2 {[%clk 0:02:49]}  Nf5 {[%clk 0:02:12]} 14. c3 {[%clk 0:02:49]}  f6 {[%clk 0:02:11]} 15. Kh1 {[%clk 0:02:36]}  fxe5 {[%clk 0:02:05]} 16. fxe5 {[%clk 0:02:33]}  Nxe5 {[%clk 0:01:29]} 17. a5 {[%clk 0:02:29]}  Qd8 {[%clk 0:01:23]} 18. Nxf5 {[%clk 0:02:29]}  Rxf5 {[%clk 0:01:08]} 19. Rxf5 {[%clk 0:02:28]}  gxf5 {[%clk 0:01:09]} 20. Nf4 {[%clk 0:02:18]}  Bd7 {[%clk 0:01:01]} 21. Be3 {[%clk 0:02:04]}  Qh4 {[%clk 0:00:55]} 22. g3 {[%clk 0:01:59]}  Qg4 {[%clk 0:00:35]} 23. Nh5 {[%clk 0:01:51]}  Qxd1+ {[%clk 0:00:29]} 24. Rxd1 {[%clk 0:01:51]}  Bc6 {[%clk 0:00:25]} 25. Bd4 {[%clk 0:01:46]}  Bh8 {[%clk 0:00:23]} 26. Nf4 {[%clk 0:01:35]}  Re8 {[%clk 0:00:17]} 27. Re1 {[%clk 0:01:32]}  Nf3 {[%clk 0:00:16]} 28. Rxe6 {[%clk 0:01:31]}  Rxe6 {[%clk 0:00:10]} 29. Nxe6 {[%clk 0:01:31]}  Nxd4 {[%clk 0:00:10]} 30. Nxd4 {[%clk 0:01:28]}  Bxd4 {[%clk 0:00:11]} 31. cxd4 {[%clk 0:01:28]}  Kf7 {[%clk 0:00:10]} 32. Kg2 {[%clk 0:01:28]}  Ke6 {[%clk 0:00:10]} 33. Kf3 {[%clk 0:01:28]}  Bb5 {[%clk 0:00:05]} 34. Bb1 {[%clk 0:01:20]}  Bc4 {[%clk 0:00:04]} 35. Kf4 {[%clk 0:01:19]}  Kd6 {[%clk 0:00:03]} 36. Bxf5 {[%clk 0:01:13]}  h6 {[%clk 0:00:04]} 37. Bg6 {[%clk 0:01:11]}  Kc6 {[%clk 0:00:04]} 38. Be8+ {[%clk 0:01:10]}  Kd6 {[%clk 0:00:03]} 39. g4 {[%clk 0:01:05]}  Bd3 {[%clk 0:00:03]} 40. h4 {[%clk 0:01:03]}  Kc7 {[%clk 0:00:03]} 41. Ke5 {[%clk 0:01:00]}  Be4 {[%clk 0:00:01]} 42. g5 {[%clk 0:00:56]}  hxg5 {[%clk 0:00:02]} 43. hxg5 {[%clk 0:00:57]}  b6 {[%clk 0:00:03]} 44. axb6+ {[%clk 0:00:55]}  Kxb6 {[%clk 0:00:04]} 45. g6 {[%clk 0:00:53]}  Ka5 {[%clk 0:00:04]} 46. g7 {[%clk 0:00:49]}  Bh7 {[%clk 0:00:05]} 47. Bf7 {[%clk 0:00:49]}  Kb4 {[%clk 0:00:05]} 48. Bxd5 {[%clk 0:00:48]}  a5 {[%clk 0:00:04]} 49. g8=Q {[%clk 0:00:48]}  Bxg8 {[%clk 0:00:04]} 50. Bxg8 {[%clk 0:00:47]}  a4 {[%clk 0:00:05]} 51. d5 {[%clk 0:00:45]}  Kb3 {[%clk 0:00:05]} 52. d6+ {[%clk 0:00:45]}  Kxb2 {[%clk 0:00:06]} 53. d7 {[%clk 0:00:45]}  a3 {[%clk 0:00:07]} 54. d8=Q {[%clk 0:00:45]}  a2 {[%clk 0:00:08]} 55. Bxa2 {[%clk 0:00:44]}  Ka1 {[%clk 0:00:08]} 56. Qb6 {[%clk 0:00:41]}  Kxa2 {[%clk 0:00:08]} 57. Qb4 {[%clk 0:00:40]}  Ka1 {[%clk 0:00:07]} 58. Kd4 {[%clk 0:00:40]} 1-0


[Site "https://www.chess.com"]

[Event "Titled Tuesday Blitz August 08 Late 2023"]
[White "Butti, Enrique"]
[Black "Hoffmann, Asa"]
[WhiteFideId "3700470"]
[BlackFideId "2001470"]
[WhiteElo "2209"]
[BlackElo "2353"]
[Result "1-0"]
[Round "7"]
[TimeControl "180+1"]
[Date "2023.08.08"]
[WhiteClock "0:00:59"]
[BlackClock "0:00:48"]
[Board "130"]

1. d4 {[%clk 0:02:59]}  Nf6 {[%clk 0:02:51]} 2. c4 {[%clk 0:02:58]}  c5 {[%clk 0:02:49]} 3. e3 {[%clk 0:02:57]}  g6 {[%clk 0:02:46]} 4. Nc3 {[%clk 0:02:56]}  Bg7 {[%clk 0:02:46]} 5. Nf3 {[%clk 0:02:55]}  O-O {[%clk 0:02:46]} 6. Be2 {[%clk 0:02:52]}  d6 {[%clk 0:02:46]} 7. O-O {[%clk 0:02:49]}  b6 {[%clk 0:02:45]} 8. d5 {[%clk 0:02:46]}  Nbd7 {[%clk 0:02:43]} 9. e4 {[%clk 0:02:45]}  a6 {[%clk 0:02:43]} 10. a4 {[%clk 0:02:44]}  Ne8 {[%clk 0:02:41]} 11. Bf4 {[%clk 0:02:42]}  Ne5 {[%clk 0:02:40]} 12. Nxe5 {[%clk 0:02:38]}  dxe5 {[%clk 0:02:40]} 13. Be3 {[%clk 0:02:37]}  Nd6 {[%clk 0:02:40]} 14. Qd2 {[%clk 0:02:34]}  a5 {[%clk 0:02:38]} 15. Bh6 {[%clk 0:02:28]}  f5 {[%clk 0:02:37]} 16. Bxg7 {[%clk 0:02:27]}  Kxg7 {[%clk 0:02:37]} 17. f4 {[%clk 0:02:16]}  exf4 {[%clk 0:02:32]} 18. e5 {[%clk 0:02:09]}  f3 {[%clk 0:02:00]} 19. Bxf3 {[%clk 0:02:05]}  Nxc4 {[%clk 0:01:59]} 20. Qe2 {[%clk 0:01:54]}  Ba6 {[%clk 0:01:58]} 21. Nb5 {[%clk 0:01:53]}  Nd6 {[%clk 0:01:40]} 22. exd6 {[%clk 0:01:51]}  exd6 {[%clk 0:01:40]} 23. Rae1 {[%clk 0:01:46]}  Bxb5 {[%clk 0:01:35]} 24. Qxb5 {[%clk 0:01:45]}  Rf7 {[%clk 0:01:34]} 25. Re6 {[%clk 0:01:43]}  Rc8 {[%clk 0:01:31]} 26. Rfe1 {[%clk 0:01:41]}  c4 {[%clk 0:01:29]} 27. Re8 {[%clk 0:01:30]}  Qc7 {[%clk 0:01:23]} 28. Rxc8 {[%clk 0:01:27]}  Qxc8 {[%clk 0:01:23]} 29. Qxb6 {[%clk 0:01:26]}  c3 {[%clk 0:01:22]} 30. Qxd6 {[%clk 0:01:16]}  c2 {[%clk 0:01:12]} 31. Qe5+ {[%clk 0:01:13]}  Kh6 {[%clk 0:01:10]} 32. Rc1 {[%clk 0:01:10]}  Qc5+ {[%clk 0:01:05]} 33. Kh1 {[%clk 0:01:09]}  Re7 {[%clk 0:01:05]} 34. Qc3 {[%clk 0:01:06]}  Qf2 {[%clk 0:00:59]} 35. h3 {[%clk 0:01:01]}  Re2 {[%clk 0:00:48]} 36. Bxe2 {[%clk 0:00:59]} 1-0


[Site "https://www.chess.com"]

[Event "Titled Tuesday Blitz August 08 Late 2023"]
[White "Novikova, Margarita"]
[Black "ciroreva-CB"]
[WhiteFideId "14109689"]
[WhiteElo "2147"]
[BlackElo "2336"]
[Result "1/2-1/2"]
[Round "7"]
[TimeControl "180+1"]
[Date "2023.08.08"]
[WhiteClock "0:00:09"]
[BlackClock "0:00:03"]
[Board "133"]

1. d4 {[%clk 0:02:59]}  d5 {[%clk 0:02:59]} 2. Bf4 {[%clk 0:02:58]}  Nf6 {[%clk 0:02:56]} 3. Nd2 {[%clk 0:02:51]}  g6 {[%clk 0:02:55]} 4. c3 {[%clk 0:02:50]}  Bg7 {[%clk 0:02:54]} 5. Ngf3 {[%clk 0:02:47]}  O-O {[%clk 0:02:52]} 6. Ne5 {[%clk 0:02:43]}  c5 {[%clk 0:02:47]} 7. e3 {[%clk 0:02:43]}  Nc6 {[%clk 0:02:38]} 8. h3 {[%clk 0:02:41]}  h5 {[%clk 0:02:15]} 9. Nxc6 {[%clk 0:02:33]}  bxc6 {[%clk 0:02:14]} 10. Be2 {[%clk 0:02:32]}  Bf5 {[%clk 0:02:09]} 11. Nf3 {[%clk 0:02:28]}  Nd7 {[%clk 0:02:06]} 12. Rg1 {[%clk 0:02:08]}  cxd4 {[%clk 0:01:58]} 13. exd4 {[%clk 0:02:07]}  Be4 {[%clk 0:01:56]} 14. Bd3 {[%clk 0:02:05]}  Bxd3 {[%clk 0:01:44]} 15. Qxd3 {[%clk 0:02:04]}  e5 {[%clk 0:01:45]} 16. Nxe5 {[%clk 0:01:57]}  Re8 {[%clk 0:01:39]} 17. O-O-O {[%clk 0:01:51]}  Nxe5 {[%clk 0:01:37]} 18. dxe5 {[%clk 0:01:50]}  Bxe5 {[%clk 0:01:37]} 19. Bxe5 {[%clk 0:01:50]}  Rxe5 {[%clk 0:01:37]} 20. g4 {[%clk 0:01:40]}  Qg5+ {[%clk 0:01:31]} 21. Qd2 {[%clk 0:01:36]}  Qxd2+ {[%clk 0:01:27]} 22. Kxd2 {[%clk 0:01:30]}  hxg4 {[%clk 0:01:23]} 23. hxg4 {[%clk 0:01:30]}  Rae8 {[%clk 0:01:23]} 24. Rde1 {[%clk 0:01:27]}  Kg7 {[%clk 0:01:16]} 25. Rxe5 {[%clk 0:01:18]}  Rxe5 {[%clk 0:01:17]} 26. Re1 {[%clk 0:01:06]}  Rxe1 {[%clk 0:01:15]} 27. Kxe1 {[%clk 0:01:07]}  Kf6 {[%clk 0:01:15]} 28. Ke2 {[%clk 0:01:03]}  Ke5 {[%clk 0:01:14]} 29. Ke3 {[%clk 0:01:00]}  g5 {[%clk 0:01:14]} 30. b4 {[%clk 0:00:52]}  a6 {[%clk 0:01:09]} 31. a4 {[%clk 0:00:48]}  f6 {[%clk 0:00:25]} 32. f3 {[%clk 0:00:46]}  f5 {[%clk 0:00:25]} 33. gxf5 {[%clk 0:00:46]}  Kxf5 {[%clk 0:00:26]} 34. Kd4 {[%clk 0:00:45]}  Kf4 {[%clk 0:00:26]} 35. Kc5 {[%clk 0:00:45]}  Kxf3 {[%clk 0:00:26]} 36. Kxc6 {[%clk 0:00:45]}  g4 {[%clk 0:00:27]} 37. b5 {[%clk 0:00:45]}  axb5 {[%clk 0:00:22]} 38. axb5 {[%clk 0:00:42]}  g3 {[%clk 0:00:22]} 39. b6 {[%clk 0:00:42]}  g2 {[%clk 0:00:22]} 40. b7 {[%clk 0:00:43]}  g1=Q {[%clk 0:00:22]} 41. b8=Q {[%clk 0:00:43]}  Qg7 {[%clk 0:00:12]} 42. Qb4 {[%clk 0:00:36]}  Qf6+ {[%clk 0:00:09]} 43. Kxd5 {[%clk 0:00:35]}  Qf5+ {[%clk 0:00:09]} 44. Kc4 {[%clk 0:00:34]}  Qe6+ {[%clk 0:00:08]} 45. Kb5 {[%clk 0:00:34]}  Qd7+ {[%clk 0:00:08]} 46. Ka5 {[%clk 0:00:30]}  Ke3 {[%clk 0:00:07]} 47. c4 {[%clk 0:00:28]}  Qa7+ {[%clk 0:00:06]} 48. Kb5 {[%clk 0:00:27]}  Qb7+ {[%clk 0:00:06]} 49. Ka4 {[%clk 0:00:27]}  Qa7+ {[%clk 0:00:06]} 50. Kb3 {[%clk 0:00:27]}  Kd4 {[%clk 0:00:06]} 51. c5+ {[%clk 0:00:25]}  Kd5 {[%clk 0:00:06]} 52. Qc4+ {[%clk 0:00:24]}  Kc6 {[%clk 0:00:06]} 53. Qe6+ {[%clk 0:00:22]}  Kb5 {[%clk 0:00:04]} 54. Qc4+ {[%clk 0:00:19]}  Kc6 {[%clk 0:00:04]} 55. Qe6+ {[%clk 0:00:17]}  Kb5 {[%clk 0:00:04]} 56. Qe2+ {[%clk 0:00:14]}  Kc6 {[%clk 0:00:04]} 57. Qf3+ {[%clk 0:00:14]}  Kb5 {[%clk 0:00:03]} 58. Qf1+ {[%clk 0:00:13]}  Kc6 {[%clk 0:00:04]} 59. Qg2+ {[%clk 0:00:12]}  Kb5 {[%clk 0:00:02]} 60. Qe2+ {[%clk 0:00:10]}  Kc6 {[%clk 0:00:03]} 61. Kc3 {[%clk 0:00:09]}  Qxc5+ {[%clk 0:00:03]} 62. Qc4 {[%clk 0:00:09]}  Qxc4+ {[%clk 0:00:03]} 63. Kxc4 {[%clk 0:00:09]} 1/2-1/2


[Site "https://www.chess.com"]

[Event "Titled Tuesday Blitz August 08 Late 2023"]
[White "Sabar Ethmane Daouda"]
[Black "dorpato"]
[WhiteFideId "19600097"]
[WhiteElo "2210"]
[BlackElo "2068"]
[Result "0-1"]
[Round "7"]
[TimeControl "180+1"]
[Date "2023.08.08"]
[WhiteClock "0:00:49"]
[BlackClock "0:00:43"]
[Board "136"]

1. b3 {[%clk 0:02:48]}  d5 {[%clk 0:02:53]} 2. Bb2 {[%clk 0:02:49]}  Nc6 {[%clk 0:02:52]} 3. e3 {[%clk 0:02:49]}  e5 {[%clk 0:02:47]} 4. Bb5 {[%clk 0:02:49]}  Bd7 {[%clk 0:02:44]} 5. Bxc6 {[%clk 0:02:47]}  Bxc6 {[%clk 0:02:44]} 6. Bxe5 {[%clk 0:02:47]}  f6 {[%clk 0:02:44]} 7. Bb2 {[%clk 0:02:47]}  d4 {[%clk 0:02:43]} 8. Bxd4 {[%clk 0:02:45]}  Bxg2 {[%clk 0:02:43]} 9. Nf3 {[%clk 0:02:42]}  Bxh1 {[%clk 0:02:41]} 10. Qe2 {[%clk 0:02:43]}  Bxf3 {[%clk 0:02:41]} 11. Qxf3 {[%clk 0:02:43]}  c6 {[%clk 0:02:41]} 12. Nc3 {[%clk 0:02:42]}  Ne7 {[%clk 0:02:29]} 13. Ne4 {[%clk 0:02:39]}  Ng6 {[%clk 0:02:21]} 14. Nxf6+ {[%clk 0:02:26]}  gxf6 {[%clk 0:02:07]} 15. Bxf6 {[%clk 0:02:27]}  Qd5 {[%clk 0:02:03]} 16. e4 {[%clk 0:02:18]}  Qf7 {[%clk 0:02:02]} 17. Qc3 {[%clk 0:02:11]}  Rg8 {[%clk 0:02:01]} 18. O-O-O {[%clk 0:02:08]}  Be7 {[%clk 0:01:57]} 19. e5 {[%clk 0:02:08]}  Nf4 {[%clk 0:01:54]} 20. Bxe7 {[%clk 0:01:34]}  Qxe7 {[%clk 0:01:53]} 21. Qc4 {[%clk 0:01:31]}  Nd5 {[%clk 0:01:51]} 22. Qa4 {[%clk 0:01:23]}  a6 {[%clk 0:01:40]} 23. c4 {[%clk 0:01:23]}  Qb4 {[%clk 0:01:03]} 24. cxd5 {[%clk 0:01:19]}  Qxa4 {[%clk 0:00:56]} 25. bxa4 {[%clk 0:01:20]}  cxd5 {[%clk 0:00:56]} 26. d4 {[%clk 0:01:21]}  Ke7 {[%clk 0:00:56]} 27. f4 {[%clk 0:01:20]}  Rgc8+ {[%clk 0:00:56]} 28. Kd2 {[%clk 0:01:20]}  Rc4 {[%clk 0:00:57]} 29. Ke3 {[%clk 0:01:17]}  Rxa4 {[%clk 0:00:57]} 30. f5 {[%clk 0:01:18]}  Rxa2 {[%clk 0:00:55]} 31. f6+ {[%clk 0:01:13]}  Ke6 {[%clk 0:00:55]} 32. Rc1 {[%clk 0:01:13]}  Ra3+ {[%clk 0:00:55]} 33. Ke2 {[%clk 0:01:00]}  Rg8 {[%clk 0:00:52]} 34. Rc7 {[%clk 0:00:58]}  Rg2+ {[%clk 0:00:48]} 35. Kf1 {[%clk 0:00:58]}  Rxh2 {[%clk 0:00:47]} 36. Re7+ {[%clk 0:00:55]}  Kf5 {[%clk 0:00:44]} 37. Kg1 {[%clk 0:00:49]}  Rd2 {[%clk 0:00:43]} 0-1


[Site "https://www.chess.com"]

[Event "Titled Tuesday Blitz August 08 Late 2023"]
[White "Maluco_do_Natal_00"]
[Black "Berezin, Viktor"]
[BlackFideId "14107872"]
[WhiteElo "2091"]
[BlackElo "2467"]
[Result "0-1"]
[Round "7"]
[TimeControl "180+1"]
[Date "2023.08.08"]
[WhiteClock "0:00:00"]
[BlackClock "0:01:35"]
[Board "137"]

1. e4 {[%clk 0:03:00]}  d5 {[%clk 0:02:54]} 2. exd5 {[%clk 0:03:00]}  Nf6 {[%clk 0:02:54]} 3. d4 {[%clk 0:02:58]}  Bg4 {[%clk 0:02:54]} 4. Be2 {[%clk 0:02:58]}  Bxe2 {[%clk 0:02:52]} 5. Nxe2 {[%clk 0:02:58]}  Qxd5 {[%clk 0:02:52]} 6. O-O {[%clk 0:02:58]}  Nc6 {[%clk 0:02:52]} 7. c3 {[%clk 0:02:57]}  O-O-O {[%clk 0:02:51]} 8. Qb3 {[%clk 0:02:57]}  Qxb3 {[%clk 0:02:45]} 9. axb3 {[%clk 0:02:58]}  a6 {[%clk 0:02:44]} 10. f3 {[%clk 0:02:41]}  e5 {[%clk 0:02:41]} 11. Be3 {[%clk 0:02:40]}  Nd5 {[%clk 0:02:40]} 12. Bf2 {[%clk 0:02:39]}  f6 {[%clk 0:02:40]} 13. Nd2 {[%clk 0:02:37]}  Be7 {[%clk 0:02:38]} 14. c4 {[%clk 0:02:19]}  Ndb4 {[%clk 0:02:32]} 15. d5 {[%clk 0:02:19]}  Nd3 {[%clk 0:02:27]} 16. Be3 {[%clk 0:02:01]}  Ncb4 {[%clk 0:02:22]} 17. Rfc1 {[%clk 0:01:25]}  c6 {[%clk 0:02:13]} 18. Rc3 {[%clk 0:01:15]}  Nxb2 {[%clk 0:02:05]} 19. Bb6 {[%clk 0:01:10]}  Rd7 {[%clk 0:02:03]} 20. Ne4 {[%clk 0:01:07]}  N2d3 {[%clk 0:02:00]} 21. N2g3 {[%clk 0:00:53]}  g6 {[%clk 0:01:55]} 22. dxc6 {[%clk 0:00:33]}  Nxc6 {[%clk 0:01:53]} 23. Rd1 {[%clk 0:00:15]}  Ncb4 {[%clk 0:01:52]} 24. c5 {[%clk 0:00:12]}  f5 {[%clk 0:01:50]} 25. Nf2 {[%clk 0:00:08]}  Nxf2 {[%clk 0:01:47]} 26. Rxd7 {[%clk 0:00:08]}  Kxd7 {[%clk 0:01:48]} 27. Kxf2 {[%clk 0:00:07]}  Kc6 {[%clk 0:01:45]} 28. Rc4 {[%clk 0:00:07]}  Nd5 {[%clk 0:01:44]} 29. Nf1 {[%clk 0:00:05]}  Nxb6 {[%clk 0:01:41]} 30. cxb6+ {[%clk 0:00:05]}  Bc5+ {[%clk 0:01:40]} 31. Ke2 {[%clk 0:00:04]}  Kxb6 {[%clk 0:01:39]} 32. b4 {[%clk 0:00:04]}  Bd4 {[%clk 0:01:39]} 33. Nd2 {[%clk 0:00:03]}  Rd8 {[%clk 0:01:38]} 34. Nb3 {[%clk 0:00:00]}  Bg1 {[%clk 0:01:35]} 0-1


[Site "https://www.chess.com"]